bitfinex/quotes_ETHUSD_20251118
["timestamp","ask_amount","ask_price","bid_price","bid_amount"]
[1763477126532,0.4525,3087.3,3085.1,0.1934]
[1763477126533,0.303,3087.2,3085.9,0.405504]
[1763477126901,0.303,3087.1,3086.1,0.405504]
[1763477127106,0.303,3087.1,3085.5,0.405504]
[1763477127107,0.303,3087.1,3085.5,0.496]
[1763477127403,0.303,3087.1,3084.3,0.4222038]
[1763477127604,0.303,3087.1,3083.1,1.50359408]
[1763477127605,0.405504,3086.2,3084.1,0.1934]
[1763477127803,0.9419815,3086.1,3084.2,0.03242331]
[1763477128039,0.9419815,3086.1,3084.1,0.6894]
[1763477128040,1.357,3086.0,3084.1,0.1934]
[1763477128350,0.4525,3086.6,3084.2,0.496]
[1763477128505,1.356,3086.5,3084.2,0.496]
[1763477129043,1.356,3086.5,3084.3,0.405504]
[1763477129244,1.8085,3086.5,3084.3,0.496]
[1763477129466,1.356,3086.5,3084.3,0.496]
[1763477129669,1.356,3086.5,3084.6,0.405504]
[1763477129833,1.356,3086.5,3084.8,0.405504]
[1763477130034,1.356,3086.5,3085.0,0.405504]
[1763477130475,1.356,3086.5,3085.2,0.405504]
[1763477130773,1.356,3086.5,3085.1,0.496]
[1763477131135,1.053,3087.0,3085.1,0.496]
[1763477131341,0.302,3086.9,3085.2,0.405504]
[1763477131539,0.302,3086.9,3085.1,1.40299264]
[1763477131540,0.302,3086.9,3085.6,1.31249664]
[1763477131945,0.302,3086.9,3085.8,0.405504]
[1763477132378,0.302,3086.9,3085.7,0.496]
[1763477132379,0.302,3086.9,3086.0,0.405504]
[1763477132777,0.302,3086.9,3086.2,0.405504]
[1763477132949,1.053,3087.0,3086.2,0.405504]
[1763477132950,1.053,3087.9,3086.4,0.405504]
[1763477133467,0.002,3088.9,3087.9,0.405504]
[1763477133650,0.002,3089.6,3088.9,0.405504]
[1763477133850,0.16834469,3093.2,3088.9,0.405504]
[1763477133851,1.053,3091.8,3089.1,0.405504]
[1763477134046,0.302,3091.7,3089.3,1.31249664]
[1763477134250,0.302,3091.7,3089.5,0.405504]
[1763477134479,0.4525,3092.2,3089.5,0.405504]
[1763477134480,0.302,3091.6,3089.5,0.405504]
[1763477134778,0.1006,3089.6,3087.2,0.1934]
[1763477134977,0.405504,3089.4,3087.2,0.1934]
[1763477135148,0.90699264,3089.3,3086.7,0.1934]
[1763477135353,1.5424815,3089.2,3086.7,0.1934]
[1763477135678,0.4525,3089.2,3087.0,6.84365108]
[1763477135981,0.1006,3089.6,3087.3,0.405504]
[1763477135982,0.302,3089.1,3087.3,0.405504]
[1763477136136,0.302,3089.1,3087.1,0.496]
[1763477136340,0.302,3089.1,3086.7,0.1934]
[1763477136341,0.302,3089.1,3087.2,0.4841]
[1763477137083,0.4937,3089.0,3087.2,0.4841]
[1763477137580,0.002,3086.9,3086.7,0.1934]
[1763477137784,0.302,3086.8,3086.7,0.1934]
[1763477138369,0.4937,3089.0,3086.7,3.91720583]
[1763477138370,0.002,3087.3,3086.7,3.91720583]
[1763477138578,0.002,3087.3,3086.7,0.6775]
[1763477138890,0.002,3087.3,3085.6,0.1934]
[1763477139186,0.002,3087.3,3085.7,0.4841]
[1763477139488,0.4957,3087.3,3085.2,0.4841]
[1763477139784,0.302,3087.2,3085.2,0.4841]
[1763477139956,0.302,3087.2,3085.2,3.72537845]
[1763477140163,1.354,3087.1,3085.3,1.27953049]
[1763477140383,1.354,3087.1,3085.5,0.405504]
[1763477140588,0.002,3087.3,3085.7,0.405504]
[1763477140789,0.302,3087.2,3085.7,1.31249664]
[1763477140956,0.302,3087.2,3085.9,0.405504]
[1763477141379,0.302,3087.1,3086.1,0.405504]
[1763477141591,0.002,3087.3,3086.3,1.31249664]
[1763477141793,0.302,3087.0,3086.5,0.405504]
[1763477142115,0.302,3087.0,3086.2,0.4841]
[1763477142408,0.002,3087.3,3086.4,0.405504]
[1763477142564,0.7957,3087.2,3084.5,0.81565521]
[1763477142763,0.7957,3087.2,3085.1,0.4841]
[1763477142764,1.354,3087.1,3085.1,0.4841]
[1763477143006,0.48677,3087.0,3085.1,0.4841]
[1763477143191,1.354,3087.0,3085.1,0.4841]
[1763477143495,0.4937,3087.0,3085.1,1.39109264]
[1763477143700,1.354,3086.9,3085.2,0.90699264]
[1763477143906,0.002,3087.3,3085.2,0.4841]
[1763477144198,0.002,3087.3,3085.1,3.24136669]
[1763477144199,1.052,3086.9,3085.4,0.405504]
[1763477144564,1.052,3086.9,3085.6,0.405504]
[1763477144994,1.052,3086.9,3085.8,0.405504]
[1763477145193,0.4937,3086.8,3085.0,0.001]
[1763477145914,0.002,3087.3,3085.1,0.4841]
[1763477146211,0.302,3086.7,3085.2,0.405504]
[1763477146378,0.302,3086.7,3085.1,1.29975521]
[1763477146379,0.302,3086.7,3085.4,0.405504]
[1763477146774,0.302,3086.7,3085.6,0.405504]
[1763477147276,0.302,3086.7,3085.6,0.889604]
[1763477147592,0.002,3087.3,3086.0,0.405504]
[1763477147909,0.302,3086.6,3086.4,0.405504]
[1763477148075,0.302,3086.6,3086.4,1.22115921]
[1763477148277,0.002,3087.3,3086.6,1.31249664]
[1763477148477,0.002,3087.3,3087.2,0.8467624]
[1763477148679,0.002,3087.3,3086.7,1.19915783]
[1763477148882,0.002,3087.3,3086.7,0.405504]
[1763477149079,0.002,3087.3,3086.4,0.8467624]
[1763477149396,0.002,3087.3,3086.5,0.4841]
[1763477149597,0.302,3087.2,3086.5,0.4841]
[1763477149800,0.302,3087.2,3086.7,0.8467624]
[1763477150016,0.302,3087.2,3087.1,0.405504]
[1763477150180,0.302,3087.2,3087.1,1.7363664]
[1763477150367,0.302,3087.2,3087.1,1.25375183]
[1763477150566,0.302,3087.2,3087.1,0.889604]
[1763477150805,0.302,3087.2,3087.1,1.73785077]
[1763477150972,0.302,3087.2,3087.1,0.405504]
[1763477151167,0.302,3087.2,3086.9,0.84824677]
[1763477151371,0.302,3087.2,3086.3,0.84824677]
[1763477151581,0.302,3087.2,3086.2,0.84824677]
[1763477151788,0.302,3087.2,3085.9,0.84824677]
[1763477151999,0.302,3087.2,3085.7,0.84824677]
[1763477152320,0.4937,3087.1,3085.8,0.84824677]
[1763477152483,0.4937,3087.1,3085.6,0.84824677]
[1763477152684,0.4937,3087.1,3085.5,0.84824677]
[1763477153114,0.4937,3087.1,3085.4,0.0324107]
[1763477153314,0.4937,3087.1,3085.1,0.84824677]
[1763477153485,0.4937,3087.1,3085.0,0.84924677]
[1763477153819,0.4937,3087.1,3085.1,0.84824677]
[1763477154017,0.4937,3087.1,3085.3,0.84824677]
[1763477154018,1.354,3087.0,3085.3,0.84824677]
[1763477154236,0.002,3087.3,3085.6,0.405504]
[1763477154384,0.302,3086.9,3085.7,0.84824677]
[1763477154581,0.302,3086.9,3085.1,0.84824677]
[1763477154819,0.405504,3086.7,3085.0,0.001]
[1763477155017,0.4937,3086.6,3085.0,0.001]
[1763477155900,0.4937,3086.6,3086.1,0.001]
[1763477156319,0.4929,3086.6,3086.1,0.001]
[1763477156489,1.354,3086.5,3086.1,0.001]
[1763477157139,1.354,3086.4,3085.8,0.001]
[1763477157642,0.0938,3086.3,3085.8,0.001]
[1763477157922,1.354,3086.2,3085.8,0.001]
[1763477158788,0.302,3086.1,3085.8,0.001]
[1763477159391,0.002,3087.2,3085.9,0.4841]
[1763477159592,1.052,3087.1,3086.0,0.405504]
[1763477159830,1.052,3087.1,3085.8,0.001]
[1763477159831,0.302,3087.0,3085.8,0.001]
[1763477159990,0.7957,3087.0,3085.8,0.001]
[1763477160188,0.18477,3086.9,3085.8,0.001]
[1763477160414,0.67847,3086.9,3085.8,0.001]
[1763477160819,0.002,3087.2,3085.8,0.406504]
[1763477160820,1.052,3086.8,3085.8,0.406504]
[1763477161025,1.354,3086.8,3085.9,0.92200945]
[1763477161187,1.354,3086.8,3086.3,0.405504]
[1763477161513,1.354,3086.8,3086.5,0.405504]
[1763477161709,1.354,3086.8,3086.7,1.31249664]
[1763477161927,1.354,3086.8,3086.7,2.13225938]
[1763477162137,1.354,3086.8,3086.7,0.889604]
[1763477162306,0.002,3087.6,3087.1,0.1896]
[1763477162502,0.002,3087.6,3087.2,0.405504]
[1763477162700,0.002,3087.6,3087.4,0.405504]
[1763477162900,0.002,3087.6,3087.5,0.889604]
[1763477163099,0.002,3087.6,3087.5,0.405504]
[1763477163315,0.002,3087.6,3087.5,0.889604]
[1763477163502,0.304,3087.6,3087.5,0.889604]
[1763477163703,0.304,3087.6,3087.5,0.405504]
[1763477163924,0.304,3087.6,3087.5,3.64437039]
[1763477164227,0.002,3087.6,3087.5,5.03546303]
[1763477164428,0.304,3087.6,3087.5,7.10629825]
[1763477164612,0.304,3087.6,3087.5,7.10823918]
[1763477164792,0.304,3087.6,3087.5,7.67142244]
[1763477164990,0.304,3087.6,3087.5,2.73707631]
[1763477165194,0.304,3087.6,3087.5,1.31249664]
[1763477165395,0.304,3087.6,3086.9,0.84940394]
[1763477165594,0.304,3087.6,3086.6,0.84940394]
[1763477165828,0.304,3087.6,3086.4,0.84940394]
[1763477166673,0.4846,3087.5,3086.2,0.84940394]
[1763477166878,0.1624,3086.5,3086.0,0.84940394]
[1763477167031,0.302,3086.4,3085.8,0.001]
[1763477167353,0.7866,3086.4,3085.8,0.001]
[1763477167738,0.302,3086.4,3085.8,0.001]
[1763477167932,0.302,3086.3,3085.8,0.001]
[1763477168236,0.1624,3086.9,3085.8,0.001]
[1763477168432,0.002,3087.6,3086.4,0.84940394]
[1763477168745,0.002,3087.6,3087.0,1.25490794]
[1763477168746,0.302,3087.5,3087.0,1.25490794]
[1763477168945,0.302,3087.5,3087.0,0.405504]
[1763477169146,0.302,3087.5,3086.7,0.84940394]
[1763477169364,0.302,3087.5,3086.1,0.84940394]
[1763477169365,0.1624,3086.8,3086.1,0.84940394]
[1763477169562,0.1624,3086.8,3085.8,0.001]
[1763477169870,0.4846,3086.7,3085.8,0.001]
[1763477170072,0.302,3086.6,3085.8,0.001]
[1763477170409,0.302,3086.6,3085.0,0.001]
[1763477170410,0.405504,3086.5,3085.0,0.001]
[1763477170721,0.890104,3086.5,3085.0,0.001]
[1763477170886,0.890104,3086.5,3083.7,1.13209002]
[1763477170887,0.0996,3085.1,3083.1,0.84940394]
[1763477171087,1.759504,3085.0,3082.8,0.84940394]
[1763477171287,1.759504,3085.0,3082.2,0.84940394]
[1763477171288,0.405504,3084.8,3082.2,0.84940394]
[1763477171488,0.405504,3084.8,3082.0,0.84940394]
[1763477171825,0.4846,3084.9,3081.4,0.1849]
[1763477171826,1.31249664,3084.5,3081.4,0.1849]
[1763477171976,1.31249664,3084.5,3081.5,2.46699396]
[1763477172181,0.5764,3084.7,3081.5,2.46699396]
[1763477172182,0.4846,3084.4,3081.7,0.84940394]
[1763477172486,0.405504,3084.2,3081.8,0.84940394]
[1763477172808,1.354,3084.1,3081.9,0.84940394]
[1763477173009,1.354,3084.1,3082.0,0.8818504]
[1763477173211,0.4846,3084.3,3081.9,0.84940394]
[1763477173511,0.302,3084.0,3081.9,0.4855]
[1763477173699,0.302,3084.0,3081.8,0.4855]
[1763477173908,0.302,3084.0,3081.6,0.2651894]
[1763477173909,0.890104,3083.9,3081.6,0.2651894]
[1763477174125,0.4846,3083.9,3081.7,0.4855]
[1763477174278,1.8386,3083.8,3081.7,0.4855]
[1763477174776,0.4846,3083.7,3081.8,0.405504]
[1763477175172,0.405504,3083.6,3081.4,0.1849]
[1763477175480,0.4846,3083.7,3081.5,0.4855]
[1763477175679,1.354,3083.6,3081.6,0.405504]
[1763477176114,0.405504,3083.4,3081.4,0.1849]
[1763477176330,0.405504,3083.4,3081.1,0.1849]
[1763477176477,0.4846,3083.3,3081.1,0.1849]
[1763477176680,1.355,3083.2,3081.3,0.405504]
[1763477176914,1.355,3083.2,3081.5,0.405504]
[1763477177298,1.355,3083.2,3081.7,0.405504]
[1763477177504,0.90699264,3084.8,3081.7,0.405504]
[1763477177713,1.355,3084.6,3081.9,0.405504]
[1763477177920,1.355,3084.6,3082.1,0.405504]
[1763477178240,0.4846,3084.5,3082.1,0.405504]
[1763477178533,0.4846,3084.5,3082.2,0.405504]
[1763477179151,0.4846,3084.5,3082.4,0.405504]
[1763477179435,0.4846,3084.5,3081.5,9.7355184]
[1763477179436,0.405504,3084.0,3081.5,0.4855]
[1763477179639,0.405504,3084.0,3081.1,0.1849]
[1763477179640,1.31249664,3084.0,3081.1,0.1849]
[1763477179932,0.4846,3083.7,3081.2,0.4855]
[1763477180136,0.302,3083.6,3081.3,0.405504]
[1763477180538,0.4895,3083.5,3081.4,0.67889966]
[1763477180749,0.4895,3083.5,3081.1,0.1849]
[1763477180750,0.4895,3083.5,3081.5,0.53155172]
[1763477181040,1.053,3084.6,3081.5,0.53155172]
[1763477181041,1.053,3083.4,3081.6,0.405504]
[1763477181210,1.053,3083.6,3081.8,0.405504]
[1763477181412,1.5425,3083.6,3082.0,0.405504]
[1763477181683,1.5425,3083.6,3081.9,0.4991]
[1763477181684,0.4895,3083.5,3081.9,0.4991]
[1763477181945,0.405504,3083.4,3081.1,0.1849]
[1763477182240,0.4895,3083.5,3081.1,0.1849]
[1763477182241,1.053,3083.3,3081.2,0.4991]
[1763477182442,1.053,3083.3,3080.1,0.90699264]
[1763477182443,0.405504,3083.1,3079.9,0.84940394]
[1763477182740,1.31249664,3082.1,3079.6,0.1857]
[1763477182942,1.355,3082.0,3080.0,0.4991]
[1763477183802,1.355,3082.0,3080.2,0.90699264]
[1763477184001,0.302,3081.9,3080.3,0.4991]
[1763477184204,1.355,3081.9,3080.3,0.4991]
[1763477184525,0.302,3081.8,3080.4,0.405504]
[1763477184736,0.302,3081.8,3080.3,0.4991]
[1763477185627,0.302,3081.8,3080.4,0.405504]
[1763477185803,0.302,3081.8,3080.3,0.4991]
[1763477186148,0.302,3081.7,3080.5,0.405504]
[1763477186614,0.302,3081.7,3080.5,0.83044302]
[1763477186816,0.302,3081.7,3080.1,0.4991]
[1763477187132,0.6567,3082.9,3080.1,0.4991]
[1763477187304,1.355,3082.8,3080.2,0.405504]
[1763477187504,1.8445,3082.8,3080.4,0.405504]
[1763477187705,0.4895,3082.7,3080.4,0.405504]
[1763477189935,1.355,3082.5,3081.0,0.405504]
[1763477190245,1.053,3082.4,3081.0,0.405504]
[1763477190550,1.355,3082.4,3081.0,0.405504]
[1763477190835,1.8445,3082.4,3081.0,0.405504]
[1763477191134,0.1672,3082.9,3080.5,0.405504]
[1763477191135,1.8455,3082.3,3080.5,0.405504]
[1763477191299,0.302,3082.2,3080.5,0.405504]
[1763477191503,1.356,3082.2,3080.7,0.405504]
[1763477191999,1.356,3082.2,3080.7,0.4991]
[1763477192440,0.1672,3082.9,3080.7,0.4991]
[1763477192441,1.054,3082.1,3080.8,0.405504]
[1763477192614,0.302,3082.0,3080.8,0.405504]
[1763477192814,0.302,3082.0,3081.0,0.405504]
[1763477193029,0.90699264,3084.1,3081.0,0.405504]
[1763477193030,0.1672,3083.7,3082.0,0.405504]
[1763477193232,0.1672,3083.7,3081.9,0.1857]
[1763477193233,1.054,3083.5,3082.1,0.4991]
[1763477193556,1.054,3083.5,3081.9,0.1857]
[1763477193855,0.405504,3083.3,3081.1,0.1857]
[1763477194153,0.4895,3083.4,3081.1,0.1857]
[1763477194154,0.4895,3083.4,3081.2,0.405504]
[1763477194355,0.4895,3083.4,3081.4,0.405504]
[1763477194356,1.356,3083.3,3081.4,0.405504]
[1763477194541,1.356,3083.2,3081.4,0.405504]
[1763477194744,1.054,3083.1,3081.6,0.405504]
[1763477194943,0.1672,3083.7,3081.6,0.405504]
[1763477195253,0.1672,3084.1,3081.8,0.405504]
[1763477195453,0.002,3084.2,3081.8,0.405504]
[1763477195642,1.356,3083.7,3081.9,0.4991]
[1763477195847,1.054,3084.0,3082.2,2.16190058]
[1763477196043,1.054,3084.0,3083.7,0.405504]
[1763477196216,0.304,3083.8,3083.7,0.863204]
[1763477196783,0.002,3084.2,3083.7,0.863204]
[1763477196918,0.302,3084.1,3083.8,0.4577]
[1763477197118,0.4945,3086.5,3083.8,0.4577]
[1763477197119,1.054,3085.7,3084.5,0.405504]
[1763477197315,0.302,3085.6,3084.7,0.405504]
[1763477198077,0.302,3085.6,3084.7,0.863204]
[1763477198287,0.4945,3086.4,3084.8,0.4577]
[1763477198434,0.4945,3086.4,3084.9,0.405504]
[1763477198779,1.355,3086.3,3084.9,0.405504]
[1763477198958,0.4945,3087.1,3085.1,0.405504]
[1763477199145,1.053,3086.2,3085.1,0.405504]
[1763477199344,0.4945,3087.1,3085.3,0.405504]
[1763477199345,1.355,3086.1,3085.3,0.405504]
[1763477199568,1.355,3086.0,3085.3,0.405504]
[1763477199771,1.355,3086.0,3085.0,0.405504]
[1763477199958,0.4945,3086.7,3085.0,0.863204]
[1763477200169,0.4965,3087.2,3085.2,0.405504]
[1763477200367,1.053,3086.7,3085.4,0.405504]
[1763477200577,0.4965,3087.2,3085.4,0.405504]
[1763477200762,1.354,3086.9,3085.6,0.405504]
[1763477201486,0.4945,3086.8,3084.9,0.4577]
[1763477201860,0.4945,3086.8,3083.6,1.03270778]
[1763477201861,0.1301,3085.0,3083.6,1.03270778]
[1763477202064,0.1301,3085.0,3082.8,2.3031435]
[1763477202065,1.354,3084.9,3083.0,0.1972]
[1763477202297,1.8485,3084.9,3083.0,0.1972]
[1763477202587,0.405504,3084.7,3082.3,0.79379102]
[1763477202888,0.4945,3084.8,3082.4,0.4577]
[1763477203186,1.5475,3084.7,3082.4,0.4577]
[1763477203386,0.4937,3084.6,3082.4,0.4577]
[1763477203553,1.354,3084.5,3082.4,0.4577]
[1763477204487,1.354,3084.5,3082.2,0.1972]
[1763477204488,0.405504,3084.8,3082.2,0.1972]
[1763477204673,0.301,3084.4,3082.5,0.405504]
[1763477205184,0.405504,3084.8,3082.4,0.4577]
[1763477205383,0.405504,3084.6,3082.2,0.1972]
[1763477205586,1.354,3084.5,3082.2,0.1972]
[1763477205803,0.405504,3084.4,3082.2,0.1972]
[1763477206003,0.405504,3084.4,3081.6,0.4577]
[1763477206004,0.405504,3084.2,3081.6,0.4577]
[1763477206155,0.405504,3084.2,3081.5,0.1972]
[1763477206350,0.405504,3084.0,3081.5,0.1972]
[1763477206555,1.354,3083.9,3081.5,0.1972]
[1763477206756,0.405504,3083.8,3081.5,0.1972]
[1763477206951,0.405504,3083.8,3080.8,0.84700778]
[1763477206952,0.90699264,3083.7,3080.8,0.84700778]
[1763477207157,6.67601359,3083.8,3080.5,0.4587]
[1763477207158,1.31249664,3083.1,3080.5,0.4587]
[1763477207351,1.8485,3083.0,3080.5,0.4587]
[1763477207557,0.405504,3082.9,3080.5,0.4587]
[1763477207752,0.4945,3082.9,3080.5,0.4587]
[1763477207982,1.354,3082.8,3080.6,0.90699264]
[1763477208187,1.4536,3082.7,3080.7,1.77019664]
[1763477208461,1.354,3082.6,3080.9,0.405504]
[1763477208876,0.4945,3082.5,3081.0,0.405504]
[1763477209078,0.301,3082.4,3080.5,0.001]
[1763477209366,0.4945,3082.4,3080.6,0.4577]
[1763477209566,1.354,3082.3,3080.5,0.001]
[1763477210113,0.4945,3082.2,3080.5,0.406504]
[1763477210291,0.4945,3082.2,3080.5,0.001]
[1763477210613,0.405504,3082.1,3080.5,0.001]
[1763477211111,0.4945,3082.0,3080.5,0.001]
[1763477211273,0.1301,3080.6,3080.5,0.001]
[1763477211462,0.301,3080.6,3080.5,0.001]
[1763477211662,1.354,3080.6,3080.5,0.001]
[1763477211860,1.8485,3080.6,3080.5,0.001]
[1763477212489,0.1301,3080.7,3080.5,0.001]
[1763477212701,0.83099759,3083.1,3080.5,0.001]
[1763477212702,1.355,3080.6,3080.5,0.001]
[1763477213366,0.1301,3081.5,3080.5,0.001]
[1763477214214,1.355,3081.4,3080.6,0.405504]
[1763477214417,0.1301,3081.9,3080.6,0.405504]
[1763477214563,1.054,3081.3,3080.5,0.001]
[1763477214963,1.054,3081.2,3080.5,0.001]
[1763477215271,0.301,3081.1,3080.5,0.406504]
[1763477215643,1.355,3081.0,3080.5,0.001]
[1763477215840,0.4945,3081.8,3080.5,0.001]
[1763477216026,1.74173748,3084.5,3080.7,0.405504]
[1763477216027,5.77600959,3083.6,3080.7,0.405504]
[1763477216236,1.054,3082.6,3080.7,0.405504]
[1763477216547,0.301,3082.5,3080.9,0.405504]
[1763477216727,0.4945,3083.5,3080.9,0.405504]
[1763477216932,1.355,3083.4,3081.1,0.405504]
[1763477217445,0.405504,3083.2,3081.1,0.405504]
[1763477217744,0.405504,3083.2,3081.0,0.4577]
[1763477217898,0.4945,3083.3,3081.0,0.4577]
[1763477217899,0.4945,3083.1,3081.0,0.4577]
[1763477218099,0.4945,3083.1,3080.5,0.001]
[1763477218398,1.355,3083.0,3080.9,0.405504]
[1763477218929,1.355,3083.0,3080.8,0.4577]
[1763477218930,0.405504,3082.8,3080.8,0.4577]
[1763477219241,0.301,3082.7,3080.8,0.4577]
[1763477219405,1.355,3082.6,3080.8,0.4577]
[1763477219732,1.355,3082.6,3080.5,0.001]
[1763477219935,0.900004,3082.5,3080.5,0.001]
[1763477220099,1.355,3082.4,3080.5,0.4587]
[1763477220301,1.8495,3082.3,3080.5,0.4587]
[1763477220550,1.8495,3082.3,3080.6,0.405504]
[1763477220844,0.4945,3082.2,3080.6,0.405504]
[1763477221212,0.4945,3082.2,3080.5,0.001]
[1763477221418,1.31249664,3081.7,3080.5,0.001]
[1763477221757,0.405504,3080.5,3080.3,0.001]
[1763477221902,5.77600959,3082.4,3080.3,0.4587]
[1763477222106,1.355,3082.1,3080.3,0.4587]
[1763477222307,0.5941,3082.7,3080.4,0.405504]
[1763477222502,1.355,3082.6,3080.6,0.405504]
[1763477222810,1.355,3082.5,3080.6,0.405504]
[1763477223142,1.355,3082.4,3080.6,0.405504]
[1763477223344,0.4945,3082.3,3080.3,0.001]
[1763477223651,0.405504,3082.2,3080.3,0.001]
[1763477223811,0.405504,3082.0,3080.3,0.001]
[1763477224309,0.405504,3081.8,3080.3,0.001]
[1763477224519,0.405504,3081.6,3080.3,0.001]
[1763477224929,1.054,3081.6,3081.5,0.1972]
[1763477225105,0.4945,3083.4,3081.6,0.405504]
[1763477225106,1.054,3082.8,3081.6,0.405504]
[1763477225310,0.301,3082.7,3081.8,0.405504]
[1763477225503,0.4006,3082.7,3081.6,0.405504]
[1763477225722,0.8951,3082.7,3081.1,0.4577]
[1763477226044,1.355,3082.6,3081.2,0.405504]
[1763477226338,0.0996,3082.7,3081.2,0.405504]
[1763477226547,0.1301,3083.6,3081.4,0.405504]
[1763477226548,1.054,3082.6,3081.4,0.405504]
[1763477226708,0.301,3082.5,3081.4,0.405504]
[1763477226904,0.5974,3083.6,3081.6,0.405504]
[1763477226905,1.054,3082.4,3081.6,0.405504]
[1763477227535,1.054,3082.4,3081.8,0.405504]
[1763477227742,0.4673,3083.3,3082.0,0.405504]
[1763477227743,1.054,3083.3,3082.0,0.405504]
[1763477227939,1.054,3083.3,3082.2,0.405504]
[1763477228146,0.301,3083.2,3082.4,0.405504]
[1763477228344,0.301,3083.2,3081.6,0.405504]
[1763477228548,0.301,3083.2,3081.9,0.405504]
[1763477228846,0.405504,3083.0,3080.4,0.4529]
[1763477229146,0.405504,3082.8,3080.2,0.001]
[1763477229329,1.31249664,3081.8,3080.2,0.001]
[1763477229532,1.355,3081.7,3080.2,0.001]
[1763477229735,1.355,3081.6,3080.2,0.001]
[1763477230042,0.4673,3081.8,3080.2,0.001]
[1763477230354,1.355,3081.7,3080.2,0.001]
[1763477230772,0.4673,3081.6,3081.5,0.001]
[1763477231272,0.405504,3081.5,3080.2,0.001]
[1763477231434,0.1293,3080.4,3080.2,0.001]
[1763477231960,1.355,3080.4,3080.2,0.001]
[1763477232134,0.5966,3081.1,3080.2,0.001]
[1763477232336,1.054,3080.4,3080.2,0.001]
[1763477232542,1.355,3080.4,3080.2,0.001]
[1763477232752,1.8223,3080.4,3080.2,0.001]
[1763477233076,0.872804,3080.3,3078.0,0.84700778]
[1763477233277,0.872804,3080.3,3077.2,1.04490778]
[1763477233278,1.31249664,3079.4,3077.2,1.04490778]
[1763477233574,1.31249664,3079.4,3076.9,0.4529]
[1763477233575,1.31249664,3078.8,3076.9,0.4529]
[1763477233866,1.31249664,3078.8,3076.4,0.84700778]
[1763477233867,1.760504,3078.7,3076.4,0.84700778]
[1763477234072,3.13479664,3078.7,3076.2,0.84700778]
[1763477234276,3.13479664,3078.7,3075.1,2.8392487]
[1763477234277,1.31249664,3078.2,3075.7,1.04490778]
[1763477234434,1.31249664,3077.6,3074.8,0.84700778]
[1763477234634,1.31249664,3077.0,3074.7,0.84700778]
[1763477234860,0.301,3076.9,3074.7,0.84700778]
[1763477235058,0.7683,3076.9,3074.7,0.84700778]
[1763477235260,0.4673,3076.9,3075.0,0.6508]
[1763477235574,0.90699264,3077.6,3075.0,0.6508]
[1763477235773,5.77600959,3077.1,3075.1,0.4529]
[1763477235974,5.77600959,3077.1,3075.0,0.1979]
[1763477235975,0.405504,3076.9,3075.0,0.1979]
[1763477236275,1.054,3076.8,3075.1,0.4529]
[1763477236478,0.4673,3077.8,3075.1,0.4529]
[1763477236653,1.054,3076.8,3075.2,2.16668755]
[1763477236977,0.301,3076.7,3075.4,0.405504]
[1763477237477,0.301,3076.7,3075.3,0.80555802]
[1763477237478,0.301,3076.7,3075.6,0.405504]
[1763477237788,0.301,3076.7,3075.7,0.4529]
[1763477237946,0.301,3076.7,3075.2,0.4529]
[1763477238146,0.301,3076.7,3075.1,0.4529]
[1763477238350,0.0997,3077.3,3075.1,0.4529]
[1763477238577,1.761504,3077.2,3075.1,0.4529]
[1763477238764,0.4673,3077.1,3075.1,0.4529]
[1763477239143,1.356,3077.0,3075.1,0.4529]
[1763477239345,1.356,3076.9,3075.2,0.405504]
[1763477239547,1.055,3076.8,3075.2,0.405504]
[1763477239743,0.301,3076.7,3075.3,0.4529]
[1763477239946,0.7683,3076.7,3075.0,0.1979]
[1763477240177,0.4673,3076.7,3075.0,0.1979]
[1763477240380,1.8233,3076.6,3074.7,0.4529]
[1763477240880,0.4958,3076.5,3074.7,0.4529]
[1763477241066,1.356,3076.4,3074.7,0.4529]
[1763477241244,1.356,3076.3,3074.7,0.4529]
[1763477241447,1.356,3076.3,3074.2,0.1979]
[1763477241448,0.405504,3076.2,3074.2,0.1979]
[1763477241647,0.405504,3076.2,3073.2,5.77600959]
[1763477241648,1.31249664,3075.9,3073.2,0.4643]
[1763477241953,0.405504,3075.7,3073.2,0.4643]
[1763477242101,1.31249664,3075.3,3073.1,0.001]
[1763477242315,0.36893867,3076.7,3073.1,0.001]
[1763477242316,0.4958,3075.7,3073.1,0.001]
[1763477242594,1.31249664,3074.9,3073.1,0.001]
[1763477242794,0.405504,3074.7,3073.1,0.001]
[1763477242994,0.405504,3074.2,3073.1,0.001]
[1763477243194,0.405504,3074.0,3073.1,0.001]
[1763477243493,1.356,3073.9,3073.1,0.001]
[1763477243893,0.4958,3073.8,3073.1,0.001]
[1763477244219,0.1473,3073.2,3073.1,0.001]
[1763477244360,0.405504,3073.1,3072.5,0.001]
[1763477244565,1.31249664,3072.9,3072.5,0.001]
[1763477244962,0.4958,3072.8,3072.5,0.001]
[1763477245161,0.405504,3072.6,3072.5,0.001]
[1763477245410,6.27180959,3072.8,3070.0,0.001]
[1763477245572,6.27180959,3072.8,3070.3,0.6622]